Cogmind - Beta 14 @@@ ROGUE MODE // 2024.08.11 @ 12:58:58 Player: saltine Result: Self-destructed Performance ------------- Evolutions (6) 3000 Regions Visited (7) 1400 Robots Destroyed (47) 235 Value Destroyed (1663) 1663 Prototype IDs (12) 240 Alien Tech Used (0) 0 Bonus (417) 417 TOTAL SCORE: 6955 Bonus ------- Follower Combat Kills 132 Registered with UFD 300 Friendly Fire -15 Cogmind --------- Core Integrity 168/1150 Matter 300/300 Energy 100/100 System Corruption 0% Temperature Cool (0) Movement Core (50) Location -4/Factory Parts ------- > --- POWER (2) -------- (None) > --- PROPULSION (6) --- (None) > --- UTILITY (9) ------ Advanced Signal Interpreter Targeting Computer > --- WEAPON (2) ------- (None) > --- INVENTORY (5) ---- Long-range Proton Cannon Mini Grenade Launcher Plasma Cutter CPS Tube (2) Peak State ------------ > --- POWER ------------ Meta Core > --- PROPULSION ------- Advanced Treads Advanced Treads Improved Medium Treads Wheel > --- UTILITY ---------- Large Storage Unit Improved Targeting Computer Improved Utility Shielding Improved Light Armor Plating System Shield System Shield > --- WEAPON ----------- Light Cannon Scythe Companion Sword > --- INVENTORY -------- Nuclear Core Advanced Heat Sink 0b10 Decoder Chip [Looter] Improved Reaction Control System Shield Generator Heavy Ion Cannon Heavy Ion Cannon Coil Gun Advanced Assault Cannon Grenade Launcher Mini Grenade Launcher Plasma Cutter CPS Tube [Rating: 54] Favorites ----------- Power Meta Core Engine Light Ion Engine Power Core Meta Core Propulsion Wheel Treads Advanced Treads Leg Makeshift Leg Wheel Wheel Hover Unit Improved Gravmag System Utility Improved Utility Shielding Device Actuator Array Storage Small Storage Unit Processor Improved Melee Analysis Suite Hackware System Shield Protection Improved Utility Shielding Weapon Light Cannon Energy Gun Medium Laser Energy Cannon Subdweller Beam Cannon Ballistic Gun Assault Rifle Ballistic Cannon Light Cannon Launcher Grenade Launcher Impact Weapon Power Maul Slashing Weapon Companion Sword Build | -11 -10 -10 -8 -8 -6 -5 -4 ------- Run | Yrd Mat Sub Rec Scr Fac Fac Fac Slots Evolved 12 | . . . . . 8 2 2 Power 1 | . . . . . 1 . . Propulsion 4 | . . . . . 2 1 1 Utility 7 | . . . . . 5 1 1 Weapon . | . . . . . . . . Parts Attached 55 | 2 1 10 3 8 27 3 1 Power 3 | . . 1 . . 2 . . Engine . | . . . . . . . . Core 3 | . . 1 . . 2 . . Reactor . | . . . . . . . . Propulsion 20 | 2 . 4 1 1 11 1 . Treads 7 | 2 . 1 1 1 1 1 . Leg 1 | . . 1 . . . . . Wheel 5 | . . 2 . . 3 . . Hover 7 | . . . . . 7 . . Flight . | . . . . . . . . Utility 17 | . . 1 2 4 8 1 1 Device 3 | . . 1 1 . 1 . . Storage 3 | . . . . 3 . . . Processor 6 | . . . . . 4 1 1 Hackware 3 | . . . . . 3 . . Protection 2 | . . . 1 1 . . . Artifact . | . . . . . . . . Weapon 15 | . 1 4 . 3 6 1 . Energy Gun 1 | . . . . . 1 . . Energy Cannon 4 | . 1 1 . 1 1 . . Ballistic Gun 1 | . . . . . 1 . . Ballistic Cannon 3 | . . 2 . . 1 . . Launcher 1 | . . 1 . . . . . Special Weapon . | . . . . . . . . Impact Weapon 1 | . . . . . . 1 . Slashing Weapon 4 | . . . . 2 2 . . Piercing Weapon . | . . . . . . . . Special Melee Weapon . | . . . . . . . . Unidentified Prototypes 3 | . . 1 . 1 1 . . Corrupted Parts 1 | . . . . . 1 . . System Corruption 4 | . . . . . 4 . . Parts Lost 30 | . . 2 . . 22 1 5 Power 2 | . . . . . 2 . . Propulsion 13 | . . 1 . . 10 1 1 Utility 10 | . . 1 . . 7 . 2 Weapon 5 | . . . . . 3 . 2 Highest Loss Streak 8 | . . 1 . . 8 1 5 To Critical Strikes 1 | . . . . . 1 . . Average Slot Usage (%) 85 | . 85 83 88 94 62 30 29 Engine 1 | . 14 2 . . . . . Core 7 | . . 8 10 10 5 . . Treads 13 | . 28 13 10 12 4 . 3 Wheel 13 | . . 13 20 17 3 . . Device 2 | . . 3 5 2 . . . Storage 9 | . 14 10 10 10 3 . . Processor 1 | . . . . . 13 15 17 Protection 6 | . . . 3 11 5 . . Energy Cannon 8 | . 6 10 10 9 2 . . Ballistic Gun 1 | . 14 1 . . . . . Ballistic Cannon 12 | . . 17 20 14 3 . . Slashing Weapon 3 | . . . . 6 3 5 4 Peak Build Rating 54 | 6 6 28 31 43 54 28 33 Average Rating 29 | 6 5 21 26 34 42 23 27 On Entrance 19 | 6 6 6 24 31 42 16 28 Naked Turns . | . . . . . . . . Heaviest Build 223 | 12 13 27 32 223 48 7 7 Greatest Support 74 | 40 40 40 10 44 74 27 27 Greatest Overweight (x) 22 | . . 2 3 22 4 . 1 Average Overweight (x) 3 | . . 1 2 5 . . . Largest Inventory Capacity 35 | 8 8 8 8 35 15 5 5 Average Capacity 14 | 8 8 8 8 20 12 5 5 Most Carried 15 | 6 8 8 8 15 15 5 4 Average Carried 9 | 4 6 7 7 11 11 4 4 Final Capacity 15 | 8 8 8 8 15 5 5 5 Final Carried 15 | 4 8 8 8 15 3 4 4 Class Distribution -------------------- 29% | Commander-Mutant 25% | Commander-Tank 18% | Mutant 11% | Gunner 4% | Skirmisher 4% | Hacker-Mutant 3% | Commander-Gunner 3% | Gladiator Dominant Class ---------------- Mutant | -10/Materials Gunner | -10/Subcaves Commander-Gunner | -8/Recycling Commander-Mutant | -8/Scraptown Hacker-Mutant | -6/Factory Gladiator | -5/Factory Gladiator | -4/Factory Resources | -11 -10 -10 -8 -8 -6 -5 -4 ----------- Run | Yrd Mat Sub Rec Scr Fac Fac Fac Matter Collected 1181 | 220 70 399 46 40 371 35 . Remotely . | . . . . . . . . Salvage Created 1873 | . 227 425 44 . 718 237 222 Parts 109 | . 20 34 2 . 40 8 5 Haulers Intercepted . | . . . . . . . . Recyclers Shooed 5 | . . . . . 5 . . Parts Field Recycled . | . . . . . . . . Retrieved Matter . | . . . . . . . . Parts Self-Destructed 15 | . . 15 . . . . . Prevented . | . . . . . . . . Kills | -11 -10 -10 -8 -8 -6 -5 -4 ------- Run | Yrd Mat Sub Rec Scr Fac Fac Fac Combat Hostiles Destroyed 38 | . 7 15 1 . 10 4 1 Melee 8 | . . . . . 3 4 1 Guns 6 | . 6 . . . . . . Cannons 23 | . 1 14 1 . 7 . . Classes Destroyed 10 | . 3 2 . . 4 1 . Worker 2 | . . . . . 2 . . Builder 4 | . 1 . . . 3 . . Recycler 2 | . . . . . 1 . 1 Turret 1 | . . 1 . . . . . Swarmer 7 | . 3 4 . . . . . Grunt 13 | . 4 . 1 . 4 3 1 Duelist 1 | . . . . . . 1 . Hunter 4 | . . . . . 4 . . Programmer 2 | . . . . . 2 . . Subdweller 11 | . . 11 . . . . . Best Kill Streak 5 | . 5 4 1 . 4 4 2 Combat Bots Only 4 | . 3 4 1 . 2 4 1 Max Kills in Single Turn 2 | . 1 1 1 . 2 1 1 Gunslinging . | . . . . . . . . Exploded . | . . . . . . . . Melee 1 | . . . . . 1 1 1 Uniques/NPCs Destroyed . | . . . . . . . . Combat | -11 -10 -10 -8 -8 -6 -5 -4 -------- Run | Yrd Mat Sub Rec Scr Fac Fac Fac Hostile Shots Fired 436 | . 24 107 2 . 169 28 106 Missed 126 | . 9 38 . . 51 8 20 Damage Taken 5296 | . 171 726 24 . 2277 426 1672 Core 2135 | . 21 109 . . 845 178 982 Absorbed by Shields 30 | . . . 6 . 24 . . Redirected to Shielding 61 | . . . . . 61 . . Core Remaining (%) 57 | 100 . . . 48 . 82 . Volleys Fired 120 | . 24 42 2 . 52 . . Largest 3 | . 2 3 3 . 2 . . Hottest 150 | . 80 150 150 . 113 . . Shots Fired 247 | . 48 115 6 . 78 . . Gun 38 | . 37 1 . . . . . Cannon 208 | . 11 113 6 . 78 . . Launcher 1 | . . 1 . . . . . Special . | . . . . . . . . Kinetic 131 | . 24 72 4 . 31 . . Thermal 115 | . 24 42 2 . 47 . . Explosive 1 | . . 1 . . . . . Electromagnetic . | . . . . . . . . Robot Hit Streak 13 | . 7 13 5 . 11 . . Robot Miss Streak 3 | . 3 3 . . 2 . . Penetration Max . | . . . . . . . . Secondary Targets . | . . . . . . . . Shots Hit Robots 198 | . 29 63 4 . 77 8 17 Core Hits 78 | . 11 26 2 . 28 7 4 Critical Kills 1 | . . 1 . . . . . Critical Parts Destroyed . | . . . . . . . . Critical Strikes 8 | . . 3 . . 3 2 . Meltdown 1 | . . 1 . . . . . Blast 5 | . . 2 . . 3 . . Melee Attacks 62 | . . . . . 30 9 23 Impact . | . . . . . . . . Slashing 62 | . . . . . 30 9 23 Piercing . | . . . . . . . . Sneak Attacks 3 | . . . . . 1 . 2 Combat Hostiles . | . . . . . . . . Follow-up Attacks 2 | . . . . . . 2 . Damage Inflicted 5302 | . 336 1296 128 . 2504 302 736 Guns 263 | . 249 14 . . . . . Cannons 2924 | . 87 1134 128 . 1575 . . Explosions 148 | . . 148 . . . . . Melee 1967 | . . . . . 929 302 736 Ramming . | . . . . . . . . Kinetic 1324 | . 139 623 70 . 492 . . Thermal 1863 | . 197 525 58 . 1083 . . Explosive 148 | . . 148 . . . . . Electromagnetic . | . . . . . . . . Impact . | . . . . . . . . Slashing 1967 | . . . . . 929 302 736 Piercing . | . . . . . . . . Highest Corruption 4 | . . . . . 4 . . Average Corruption 4 | . . . . . 4 . . Corruption Purged . | . . . . . . . . Corruption Blocked . | . . . . . . . . Effects 6 | . . . . . 6 . . Heat Flow Errors 1 | . . . . . 1 . . Energy Discharges 1 | . . . . . 1 . . Data Loss (minor) 2 | . . . . . 2 . . Data Loss (major) 2 | . . . . . 2 . . Overload Shots . | . . . . . . . . Overflow Damage 176 | . . 1 . . 144 . 31 Projectiles 59 | . . 1 . . 58 . . Explosions . | . . . . . . . . Melee 117 | . . . . . 86 . 31 Knockbacks 14 | . . 10 1 . 3 . . Impact . | . . . . . . . . Kinetic 12 | . . 8 1 . 3 . . Secondary 2 | . . 2 . . . . . Self-Inflicted Damage 39 | . . 39 . . . . . Shots 1 | . . 1 . . . . . Rammed . | . . . . . . . . Targets Rammed . | . . . . . . . . Kicked . | . . . . . . . . Crushed . | . . . . . . . . Highest Temperature 273 | . 117 206 97 . 273 . . Average Temperature 51 | . 37 47 52 . 64 . . Received Heat Transfer 1490 | . 81 165 7 . 693 9 535 Effects 2 | . . . . . 2 . . Interference 2 | . . . . . 2 . . Siege Activations . | . . . . . . . . Robots Corrupted . | . . . . . . . . Combat Hostiles . | . . . . . . . . Parts Fried . | . . . . . . . . Impact Corruptions . | . . . . . . . . Robots Melted 1 | . . 1 . . . . . Combat Hostiles 1 | . . 1 . . . . . Parts Melted 3 | . . 2 . . 1 . . Heat Transferred 2923 | . 518 888 74 . 1443 . . Parts Sabotaged . | . . . . . . . . Parts Stolen . | . . . . . . . . Parts Stripped . | . . . . . . . . Power Chain Reactions . | . . . . . . . . Alert | -11 -10 -10 -8 -8 -6 -5 -4 ------- Run | Yrd Mat Sub Rec Scr Fac Fac Fac Peak Influence 149 | . 125 . 101 . 149 141 83 Initial 68 | . . . 37 . . 52 68 Average 50 | . 53 . 40 . 63 69 10 Maximum Alert Level . | . . . . . . . . Low Security (%) 100 | 100 100 . 100 . 100 100 100 Level 1 . | . . . . . . . . Level 2 . | . . . . . . . . Level 3 . | . . . . . . . . Level 4 . | . . . . . . . . Level 5 . | . . . . . . . . High Security . | . . . . . . . . Max Security . | . . . . . . . . Squads Dispatched 5 | . 1 . . . 3 . 1 Investigation . | . . . . . . . . Extermination 1 | . . . . . 1 . . Reinforcement 4 | . 1 . . . 2 . 1 Assault . | . . . . . . . . Garrison . | . . . . . . . . Intercept . | . . . . . . . . Searches Triggered . | . . . . . . . . Construction Impeded 1 | . . . . . 1 . . Haulers Reinforced . | . . . . . . . . Active Scanning Responses . | . . . . . . . . Cargo Convoy Interrupts . | . . . . . . . . Stealth | -11 -10 -10 -8 -8 -6 -5 -4 --------- Run | Yrd Mat Sub Rec Scr Fac Fac Fac Distress Signals 7 | . 1 . . . 4 2 . Communications Jammed . | . . . . . . . . Distress Signals . | . . . . . . . . Times Spotted 73 | . 11 20 1 . 26 8 7 Peak Tracking Total 13 | . 3 4 1 . 13 8 5 Tactical Retreats 4 | . . 3 . . 1 . . Traps | -11 -10 -10 -8 -8 -6 -5 -4 ------- Run | Yrd Mat Sub Rec Scr Fac Fac Fac Traps Triggered . | . . . . . . . . Indirectly . | . . . . . . . . Trap Hack Attempts . | . . . . . . . . Triggered . | . . . . . . . . Disarmed . | . . . . . . . . Reprogrammed . | . . . . . . . . Reused . | . . . . . . . . Traps Extracted . | . . . . . . . . Installed . | . . . . . . . . Triggered . | . . . . . . . . Machines | -11 -10 -10 -8 -8 -6 -5 -4 ---------- Run | Yrd Mat Sub Rec Scr Fac Fac Fac Machines Disabled 2 | . . 2 . . . . . Max in Single Turn 1 | . . 1 . . . . . Machines Repaired . | . . . . . . . . Machines Dismantled . | . . . . . . . . Machines Sabotaged . | . . . . . . . . Overloaded Fab Kills . | . . . . . . . . Hacking | -11 -10 -10 -8 -8 -6 -5 -4 --------- Run | Yrd Mat Sub Rec Scr Fac Fac Fac Machines Accessed 25 | . 4 . 11 4 4 1 1 Terminals 15 | . 4 . 6 . 3 1 1 Fabricators . | . . . . . . . . Repair Stations . | . . . . . . . . Recycling Units 6 | . . . 5 . 1 . . Scanalyzers . | . . . . . . . . Garrison Access . | . . . . . . . . Total Hacks 76 | . 9 . 33 19 8 4 3 Successful 41 | . 5 . 14 19 . 2 1 Failed 35 | . 4 . 19 . 8 2 2 Catastrophic 8 | . 1 . 3 . 3 1 . Database Lockouts . | . . . . . . . . Manual 29 | . 8 . 17 . 4 . . Terminals 42 | . 9 . 20 . 6 4 3 Fabricators . | . . . . . . . . Repair Stations . | . . . . . . . . Recycling Units 15 | . . . 13 . 2 . . Scanalyzers . | . . . . . . . . Garrison Access . | . . . . . . . . Terminal Hacks 29 | . 4 . 3 19 . 2 1 Record 18 | . . . . 18 . . . Robot Analysis 2 | . 1 . 1 . . . . Open Door 1 | . . . . 1 . . . Terminal Index 2 | . 1 . 1 . . . . Unreport Threat 1 | . . . . . . . 1 Locate Traps 1 | . 1 . . . . . . Hauler Manifests 2 | . 1 . 1 . . . . Registered Components 1 | . . . . . . 1 . Zone Layout 1 | . . . . . . 1 . Fabricator Hacks . | . . . . . . . . Repair Station Hacks . | . . . . . . . . Recycling Unit Hacks 4 | . . . 4 . . . . Retrieve Components 4 | . . . 4 . . . . Scanalyzer . | . . . . . . . . Garrison Access Hacks . | . . . . . . . . Unauthorized Hacks 8 | . 1 . 7 . . . . Terminals 5 | . 1 . 4 . . . . Botnet 4 | . 1 . 3 . . . . Disrupt 1 | . . . 1 . . . . Fabricators . | . . . . . . . . Repair Stations . | . . . . . . . . Recycling Units 3 | . . . 3 . . . . Reject 1 | . . . 1 . . . . Recyclers 1 | . . . 1 . . . . Mask 1 | . . . 1 . . . . Scanalyzers . | . . . . . . . . Garrison Access . | . . . . . . . . Data Cores Recovered . | . . . . . . . . Used . | . . . . . . . . Hacking Detections 18 | . 3 . 9 . 4 1 1 Full Trace Events . | . . . . . . . . Feedback Events . | . . . . . . . . Feedback Blocked . | . . . . . . . . Robot Schematics Acquired . | . . . . . . . . Robots Built . | . . . . . . . . Authchips . | . . . . . . . . Time . | . . . . . . . . Total Robot Build Rating . | . . . . . . . . Part Schematics Acquired . | . . . . . . . . Parts Built . | . . . . . . . . Authchips . | . . . . . . . . Time . | . . . . . . . . Total Part Build Rating . | . . . . . . . . Parts Repaired . | . . . . . . . . Time . | . . . . . . . . Parts Recycled . | . . . . . . . . Recycled Matter . | . . . . . . . . Retrieved Matter . | . . . . . . . . Retrieved Components 6 | . . . 6 . . . . Parts Scanalyzed . | . . . . . . . . Part Schematics Acquired . | . . . . . . . . Parts Damaged . | . . . . . . . . Bothacking | -11 -10 -10 -8 -8 -6 -5 -4 ------------ Run | Yrd Mat Sub Rec Scr Fac Fac Fac Used RIF Installer . | . . . . . . . . Robots Hacked . | . . . . . . . . Non-combat . | . . . . . . . . Combat . | . . . . . . . . Robot Hacks Applied . | . . . . . . . . Relay Couplers Released . | . . . . . . . . Fabnet Peak Effective % . | . . . . . . . . Robots Rewired 13 | . . . 13 . . . . Allies Hacked . | . . . . . . . . Hacks Repelled . | . . . . . . . . Allies | -11 -10 -10 -8 -8 -6 -5 -4 -------- Run | Yrd Mat Sub Rec Scr Fac Fac Fac Total Allies 13 | . . . 13 . . . . Largest Group 12 | . . . 12 11 3 . . Highest-Rated Group 203 | . . . 203 188 63 . . Highest-Rated Ally 27 | . . . 27 27 27 . . Total Orders 10 | . . . . 10 . . . STAY 9 | . . . . 9 . . . FOLLOW 1 | . . . . 1 . . . Ally Attacks 18 | . . . 12 . 6 . . Total Damage 300 | . . . 238 . 62 . . Kills 4 | . . . 4 . . . . Allies Corrupted . | . . . . . . . . Allies Melted . | . . . . . . . . Intel | -11 -10 -10 -8 -8 -6 -5 -4 ------- Run | Yrd Mat Sub Rec Scr Fac Fac Fac Robot Analysis Total 2 | . 1 . 1 . . . . Derelict Logs Recovered 3 | . . . . 3 . . . Drone Launches . | . . . . . . . . Drone Recoveries . | . . . . . . . . Decoded 0b10 Intel 8 | . . . . . 8 . . Items 8 | . . . . . 8 . . Exploration | -11 -10 -10 -8 -8 -6 -5 -4 ------------- Run | Yrd Mat Sub Rec Scr Fac Fac Fac Turns Passed 7890 | 12 832 1219 744 4068 683 178 154 Spaces Moved 4659 | 6 406 958 474 2148 380 230 57 Core 106 | . . . . . 89 . 17 Treads 1338 | 6 406 101 . 675 96 14 40 Legs . | . . . . . . . . Wheels 2910 | . . 857 474 1473 106 . . Hover 305 | . . . . . 89 216 . Flight . | . . . . . . . . Fastest Speed 48 | 160 160 95 110 110 48 60 50 Average Speed 147 | 160 160 109 114 186 105 66 147 Slowest Speed 410 | 160 160 160 125 410 300 170 170 Overloaded Moves . | . . . . . . . . Propulsion Burnouts . | . . . . . . . . Robots Hopped . | . . . . . . . . Cave-ins Triggered . | . . . . . . . . Exploration Rate (%) 43 | 2 72 71 85 92 12 8 3 Regions Visited 7 Branch Regions 3 Pre-discovered Areas 4 | . . 1 . 3 . . . Known Exits Taken . | . . . . . . . . Unknown Exits Taken 7 | 1 1 1 1 1 1 1 . Scrap Searched 4 | . . . . 4 . . . Spaces Dug 4 | . . . . . 3 1 . Terrain Destroyed 11 | . . 3 . . 7 1 . Melee 4 | . . . . . 3 1 . Projectile 7 | . . 3 . . 4 . . AOE . | . . . . . . . . Terrain Rammed . | . . . . . . . . Walls Destroyed . | . . . . . . . . Machines Disabled . | . . . . . . . . Actions | -11 -10 -10 -8 -8 -6 -5 -4 --------- Run | Yrd Mat Sub Rec Scr Fac Fac Fac Total 5347 | 9 541 1035 669 2227 532 243 91 Wait 242 | . 104 16 52 25 33 2 10 Move 4652 | 5 405 957 473 2147 379 229 57 Hop . | . . . . . . . . Pick Up 42 | . 5 4 1 27 3 2 . Fast Attach 32 | . 1 6 3 5 14 2 1 Attach 14 | . . 2 . 2 9 1 . Detach 4 | . . . . 2 2 . . Swap 9 | 2 . 2 . 1 4 . . Drop 36 | 2 2 6 2 18 6 . . Fire 120 | . 24 42 2 . 52 . . Melee 60 | . . . . . 30 7 23 Ram . | . . . . . . . . Kick . | . . . . . . . . Crush . | . . . . . . . . Escape Stasis . | . . . . . . . . Rewire 136 | . . . 136 . . . . Trap . | . . . . . . . . Miscellaneous . | . . . . . . . . Route ------- -11/Scrapyard -10/Materials (discovered 4 exits: [*Mat x2] / [*Min] / [*Sub]) -10/Subcaves (discovered 3 exits: [*Mat x2] / *Rec) -8/Recycling (discovered 2 exits: *Fac / *Scr) -8/Scraptown (discovered 2 exits: *Fac x2) -6/Factory -5/Factory (discovered 2 exits: *Fac / *Upp) -4/Factory History --------- Turn | Location | Event 6 | -11/Scrapyard | Discovered new exit (range 2) 13 | -11/Scrapyard | Entered Materials 63 | -10/Materials | Discovered new exit (range 14) 205 | -10/Materials | Discovered new exit (range 7) 311 | -10/Materials | Build established: Mutant 503 | -10/Materials | Discovered new exit (range 10) 835 | -10/Materials | Discovered new exit (range 7) 845 | -10/Materials | Entered Subcaves 1005 | -10/Subcaves | A Subdweller sparked back to life 1005 | -10/Subcaves | A Subdweller sparked back to life 1005 | -10/Subcaves | A Subdweller sparked back to life 1032 | -10/Subcaves | Found Prototype Power Core 1032 | -10/Subcaves | Identified Meta Core 1033 | -10/Subcaves | Attached Meta Core, gained temporary slots: Propulsion, Utility, Weapon 1068 | -10/Subcaves | Shifting Twisted Machinery released Sub. Monowheel 1070 | -10/Subcaves | Shifting Twisted Machinery released Mak. Shrapnel Gun 1302 | -10/Subcaves | Build established: Gunner 1326 | -10/Subcaves | Learned location of Zion (-6) 1326 | -10/Subcaves | Met a Zionite searching for "candidates" 1379 | -10/Subcaves | Discovered new exit (range 5) 1468 | -10/Subcaves | Shifting Twisted Machinery released Sub. Shrapnel Launcher 1480 | -10/Subcaves | Shifting Twisted Machinery released Sub. Beam Cannon 1498 | -10/Subcaves | Discovered new exit (range 3) 1738 | -10/Subcaves | Build established: Skirmisher 1797 | -10/Subcaves | Ambushed by Subdwellers from Twisted Machinery 2017 | -10/Subcaves | Discovered new exit (range 12) 2032 | -10/Subcaves | Core integrity fell below 50% 2064 | -10/Subcaves | Entered Recycling 2065 | -8/Recycling | Met a Zionite searching for Scraptown 2099 | -8/Recycling | Build established: Gunner 2495 | -8/Recycling | Discovered new exit (range 8) 2555 | -8/Recycling | Build established: Commander-Gunner 2724 | -8/Recycling | Scanned before Scraplab entrance 2743 | -8/Recycling | Entered Scraplab 2753 | -8/Recycling | Discovered new exit (range 3) 2808 | -8/Recycling | Entered Scraptown 2808 | -8/Scraptown | Accompanied by 11 allies 2869 | -8/Scraptown | Build established: Commander-Tank 2927 | -8/Scraptown | Visited CPS Storage 2980 | -8/Scraptown | Scanned Subdweller tech in exchange for log data 2982 | -8/Scraptown | Learned location of 1 exit from Lower Caves 2985 | -8/Scraptown | Learned location of Extension (-5) 3035 | -8/Scraptown | Visited Cyclists 3061 | -8/Scraptown | Visited UFD Registry 3061 | -8/Scraptown | Registered with UFD as "Longmod" 3146 | -8/Scraptown | Visited Supply Room 3167 | -8/Scraptown | Visited Supply Room 3188 | -8/Scraptown | Visited Junk Cannon Lab 3210 | -8/Scraptown | Visited Sword Containment 3230 | -8/Scraptown | Visited Chapter 10 3252 | -8/Scraptown | Visited Curators Association 3697 | -8/Scraptown | Discovered new exit (range 7) 3757 | -8/Scraptown | Guru changed UFD alias to "Hammerbomber" 4057 | -8/Scraptown | Visited Red Mages 4102 | -8/Scraptown | Visited Shadow of the Wyrm 4201 | -8/Scraptown | Visited IN-MT5's Study 4315 | -8/Scraptown | Heard Great Nut preacher, LISTEN AND RECITE! 4841 | -8/Scraptown | Build established: Commander-Mutant 5325 | -8/Scraptown | Visited Junk Repository 5388 | -8/Scraptown | Visited Infowarlord's Domain 5425 | -8/Scraptown | Visited Scrap Suit Storage 5637 | -8/Scraptown | Discovered new exit (range 5) 5890 | -8/Scraptown | Entered Cyclist Reading Room 5936 | -8/Scraptown | Visited TADAMA 6876 | -8/Scraptown | Entered Factory 6876 | -6/Factory | Accompanied by 3 allies 6876 | -6/Factory | Evolved 8 slots: Power x1, Propulsion x2, Utility x5 7015 | -6/Factory | Lost 3 allies 7110 | -6/Factory | Lost 3 parts (2n1u) 7276 | -6/Factory | Build established: Hacker-Mutant 7363 | -6/Factory | Core integrity fell below 50% 7391 | -6/Factory | Discovered new exit (range 15) 7412 | -6/Factory | Lost 8 parts (1p2n3u2w) 7506 | -6/Factory | Core integrity fell below 20% 7539 | -6/Factory | Lost 8 parts (1p4n3u) 7559 | -6/Factory | Entered another Factory area 7559 | -5/Factory | Evolved 2 slots: Propulsion x1, Utility x1 7560 | -5/Factory | Identified exit to Upper Caves 7588 | -5/Factory | Build established: Mutant 7694 | -5/Factory | Discovered new exit (range 16) 7737 | -5/Factory | Entered another Factory area 7737 | -4/Factory | Evolved 2 slots: Propulsion x1, Utility x1 7868 | -4/Factory | Core integrity fell below 50% 7884 | -4/Factory | Core integrity fell below 20% 7891 | -4/Factory | Self-destructed Last Messages --------------- F007. 07750_ Connecting with Terminal... 07750_ Current location identified: Factory >>Alert(Purge) Purged threat record, alert level lowered. 07772_ Acquired Adv. Signal Interpreter. 07830_ Critical hit (Burn: +50). 07848_ Critical hit (Burn: +37). 07854_ Arm. Medium Treads destroyed. 07857_ Power Maul destroyed. 07857_ Destroyed Lgt. Antimatter Reactor. 07861_ Imp. Corruption Screen destroyed. 07864_ Imp. Melee Analysis Suite destroyed. 07869_ G-67 Veteran destroyed. 07876_ Sneak attack on R-10 Processor. 07876_ R-10 Processor destroyed. 07887_ U-05 Engineer works on Subcomponent Replicator. 07889_ K-01 Serf cleans the Subcomponent Replicator. 07889_ Companion Sword destroyed. Companion Sword: "Goodbye, friend." Map ----- +----------------------------------------------------+ | """ """ #?????????????????????????????????????? | | """ """ #?????????????????????????????????????? | | """ """ #?????????????????????????????????????? | | #?????????????????????????????????????? | | """ #?????????????????????????????????????? | | """ """ #?????????????????????????????????????? | | "T """ #?????????????????????????????????????? | | """ #?????????????????????????????????????? | | #????????????????????????? ??????????? | | #####+##############+############### ??????????? | | ?# """T""" ??????????? | | ?# ?????????? | | ?# ?????????? | | ?# == ????????? | | ?# ^= !%! ????????? | | #####+#############/#####gg ????????? | | ## * % #??# g ????????? | | ## "" #??# "" "" "" "?????????? | | ## "" #??# "" "" ""????????????? | | ] ## T" #??# """ """ ??????????????? | | ## "" #??# """ """ ??????????????? | | """"""""" ## "" #??# """ """ ""????????????? | | """"""""" ## #??# ????????? | | """"""""" ## #??# "" "" "" ???????????? | | """""""???## ? #??# "" o"" "?????????????? | | "??????????# ???? #??#@ """ """ ??????????????? | | "??????????#???? ???# """ """???????????????? | | ???????????????? ???# """ """???????????????? | | ###???????????????? ???# k ????????????????? | | ??????????????????? ???# << ""????????????????? | | ??????????????????? ???# << ""????????????????? | | ??????????????????? ???# << ""????????????????? | | ????????????????????????# u< ""????????????????? | | ????????????????????????# [<